bitfinex/quotes_ETHUSD_20250529
["timestamp","ask_amount","ask_price","bid_price","bid_amount"]
[1748505213330,3.763,2731.2,2730.7,11.66203898]
[1748505213621,7.42439933,2731.2,2730.7,11.66203898]
[1748505213824,1.19,2731.4,2730.9,3.66169384]
[1748505214026,3.758,2731.1,2730.9,3.66169384]
[1748505215203,3.758,2731.1,2730.8,3.66184425]
[1748505215417,3.758,2731.1,2730.9,3.66177305]
[1748505215808,3.758,2731.1,2730.8,3.66185272]
[1748505216616,3.758,2731.1,2730.9,3.66176878]
[1748505216813,3.758,2731.1,2730.8,8.0]
[1748505217199,3.758,2731.1,2730.8,11.66185966]
[1748505218638,3.66128163,2731.3,2730.8,11.66185966]
[1748505218944,3.754,2731.2,2730.8,11.66185966]
[1748505219698,4.85119142,2731.4,2730.9,3.66178517]
[1748505219932,3.753,2731.2,2730.9,3.66178517]
[1748505220604,3.753,2731.2,2731.0,3.66164084]
[1748505220937,3.752,2731.3,2731.0,3.66164084]
[1748505221242,1.19,2731.4,2731.0,3.66164084]
[1748505221400,3.754,2731.3,2731.0,3.66157517]
[1748505221834,3.754,2731.3,2730.9,3.66172556]
[1748505222301,3.754,2731.3,2730.9,3.66171633]
[1748505222534,3.754,2731.3,2731.0,3.66164654]
[1748505222733,3.754,2731.3,2730.9,5.31071763]
[1748505222943,3.753,2731.3,2731.0,3.66162854]
[1748505223423,3.753,2731.3,2730.9,1.64899271]
[1748505223424,3.752,2731.3,2731.1,3.66148401]
[1748505223625,3.752,2731.3,2731.0,3.66160894]
[1748505223825,4.83029697,2731.6,2731.0,1.81376742]
[1748505224140,3.752,2731.4,2731.0,1.81376742]
[1748505224439,3.752,2731.4,2731.0,5.47529913]
[1748505225737,3.752,2731.4,2731.1,3.66150872]
[1748505226361,4.83029538,2731.6,2731.1,3.66150872]
[1748505226531,7.41199451,2731.5,2731.0,5.47539429]
[1748505226727,4.83029999,2731.6,2731.0,1.81376742]
[1748505226925,7.41200898,2731.5,2731.0,5.47536182]
[1748505227326,3.751,2731.5,2731.1,3.66145144]
[1748505227560,3.751,2731.5,2731.0,5.47536339]
[1748505227861,3.751,2731.5,2731.0,1.81376742]
[1748505228068,7.41200108,2731.5,2731.0,5.47539665]
[1748505228928,7.41200108,2731.5,2731.0,1.81376742]
[1748505229330,7.41200108,2731.5,2731.0,5.4753506]
[1748505229729,7.40900108,2731.5,2731.0,5.4753506]
[1748505229967,7.40900108,2731.5,2731.0,1.81376742]
[1748505230165,3.66119994,2731.4,2731.0,1.81376742]
[1748505230342,7.40906924,2731.5,2730.9,4.64071676]
[1748505230767,3.66113039,2731.4,2730.9,0.979]
[1748505231268,3.66113039,2731.4,2730.9,4.64073297]
[1748505231628,7.40904785,2731.5,2730.9,4.64073297]
[1748505231967,3.66112943,2731.4,2730.9,4.64073297]
[1748505232139,3.66112943,2731.4,2730.8,8.0]
[1748505232140,7.40904148,2731.5,2730.8,12.64092801]
[1748505232343,3.66127239,2731.3,2730.8,12.64092801]
[1748505232540,3.66117368,2731.4,2730.9,3.66179262]
[1748505232844,3.66134925,2731.3,2730.8,8.979]
[1748505233031,3.66134925,2731.3,2730.8,14.39103364]
[1748505233428,3.66134925,2731.3,2730.8,13.41203364]
[1748505233860,3.66132826,2731.3,2730.8,13.41202]
[1748505234365,3.66134766,2731.3,2730.8,9.75011437]
[1748505234572,3.6613972,2731.2,2730.8,8.0]
[1748505234753,4.6058368,2731.5,2730.8,8.0]
[1748505234754,3.66128242,2731.3,2730.8,8.0]
[1748505234937,4.76566119,2731.2,2730.8,8.0]
[1748505236364,1.1042,2731.2,2730.8,11.66189345]
[1748505238468,1.1042,2731.2,2730.8,3.78989191]
[1748505238668,3.743,2731.3,2730.9,3.66171024]
[1748505238974,7.40429401,2731.3,2730.8,3.66185971]
[1748505239284,7.40429401,2731.3,2730.6,4.64115144]
[1748505239285,3.66139734,2731.2,2730.7,3.66201828]
[1748505239435,7.40433163,2731.3,2730.7,3.66201828]
[1748505240271,3.66139425,2731.2,2730.6,0.979]
[1748505240475,3.66146383,2731.2,2730.7,3.66204483]
[1748505240860,3.741,2731.2,2730.6,3.66215588]
[1748505241091,3.741,2731.2,2730.8,3.66185801]
[1748505244494,3.741,2731.2,2730.6,5.12195293]
[1748505244495,3.741,2731.2,2730.9,3.66177821]
[1748505244696,3.741,2731.2,2730.9,3.66178478]
[1748505244902,3.741,2731.2,2730.8,3.66188493]
[1748505245096,3.738,2731.3,2730.7,3.66193504]
[1748505245403,1.1148,2731.5,2731.1,3.6615228]
[1748505245564,1.1148,2731.5,2731.0,4.77850214]
[1748505245752,4.77579785,2731.5,2731.0,4.77850214]
[1748505246248,28.65989757,2732.4,2731.0,4.77850214]
[1748505246249,4.83657774,2731.9,2731.0,1.1169]
[1748505246460,3.739,2731.8,2731.1,0.47786461]
[1748505246654,3.739,2731.8,2731.3,3.66118859]
[1748505246847,7.39960331,2731.8,2731.3,3.66118859]
[1748505247060,3.739,2731.8,2731.2,3.66133495]
[1748505247308,7.3996758,2731.8,2731.2,3.66133495]
[1748505247487,7.3996758,2731.8,2731.3,3.66125798]
[1748505247686,8.62327645,2731.8,2731.3,3.66125798]
[1748505247985,8.62327645,2731.8,2731.1,3.66144132]
[1748505248152,8.62327645,2731.8,2731.3,3.66122853]
[1748505249059,4.96260065,2731.8,2731.0,1.1169]
[1748505249393,3.737,2731.7,2731.4,3.66102652]
[1748505250392,3.737,2731.7,2731.3,3.66119075]
[1748505250598,4.83647627,2731.9,2731.3,3.66119075]
[1748505250893,3.737,2731.7,2731.3,3.66119075]
[1748505251472,3.737,2731.7,2731.4,3.66110992]
[1748505253492,4.83647627,2731.9,2731.5,3.66098273]
[1748505253493,1.176,2731.9,2731.5,3.66098273]
[1748505255605,0.05,2731.9,2731.5,3.66098273]
[1748505255774,0.05,2731.9,2731.6,3.66079056]
[1748505255978,0.05,2731.9,2731.5,3.66099212]
[1748505256377,0.05,2731.9,2731.6,3.6608522]
[1748505256996,0.05,2731.9,2731.5,3.66093033]
[1748505257323,0.05,2731.9,2731.4,4.75370565]
[1748505257964,0.05,2731.9,2731.5,3.66099212]
[1748505259864,0.05,2731.9,2731.4,4.75367179]
[1748505260269,0.05,2731.9,2731.8,3.66059008]
[1748505260493,0.05,2731.9,2731.6,1.1726]
[1748505260669,0.05,2731.9,2731.6,3.66074159]
[1748505262293,0.05,2731.9,2731.6,4.62974159]
[1748505262822,0.05,2731.9,2731.6,0.969]
[1748505263107,1.1146,2731.8,2731.4,8.0]
[1748505263309,1.1146,2731.8,2731.6,8.0]
[1748505263494,1.1146,2731.8,2731.5,8.969]
[1748505263714,1.1146,2731.8,2731.5,0.969]
[1748505264526,1.1146,2731.8,2731.6,8.0]
[1748505265424,1.1146,2731.8,2731.5,0.969]
[1748505266126,1.1146,2731.8,2731.4,0.969]
[1748505266485,1.1146,2731.8,2731.4,4.6301129]
[1748505266685,1.1146,2731.8,2731.4,0.969]
[1748505267126,1.1146,2731.8,2731.4,4.63012234]
[1748505267491,1.1146,2731.8,2731.5,8.0]
[1748505267892,3.66076134,2731.7,2731.2,1.1993]
[1748505268095,3.66076134,2731.7,2731.3,0.969]
[1748505268333,3.66076134,2731.7,2731.3,8.969]
[1748505268627,5.2577419,2731.8,2731.3,8.969]
[1748505269125,5.2577419,2731.8,2731.3,4.63024694]
[1748505269731,1.59710129,2731.8,2731.3,4.63024694]
[1748505269933,1.1146,2731.8,2731.5,8.0]
[1748505270134,1.1146,2731.8,2731.5,3.66088253]
[1748505270293,1.1146,2731.8,2731.3,4.63014362]
[1748505270496,1.1146,2731.8,2731.6,8.0]
[1748505270740,1.1146,2731.8,2731.6,3.6607944]
[1748505270943,3.792,2731.9,2731.6,3.6607944]
[1748505271739,3.792,2731.9,2731.5,11.66092648]
[1748505272057,3.792,2731.9,2731.6,3.66083266]
[1748505272265,3.792,2731.9,2731.5,8.0]
[1748505272625,3.792,2731.9,2731.7,8.0]
[1748505272817,0.05,2731.9,2731.7,8.0]
[1748505274561,0.05,2731.9,2731.6,3.66078295]
[1748505274722,0.05,2731.9,2731.7,8.0]
[1748505275332,0.05,2731.9,2731.8,12.80439008]
[1748505275767,0.05,2731.9,2731.8,9.1438]
[1748505275975,0.05,2731.9,2731.8,8.0]
[1748505279333,0.05,2731.9,2731.8,12.93776063]
[1748505281172,0.05,2731.9,2731.8,9.27717055]
[1748505281534,0.05,2731.9,2731.8,8.0]
[1748505282174,0.05,2731.9,2731.8,11.66059008]
[1748505283384,0.05,2731.9,2731.8,12.76999008]
[1748505284837,0.05,2731.9,2731.8,3.66059008]
[1748505285546,0.05,2731.9,2731.8,11.66059008]
[1748505293043,0.05,2731.9,2731.8,8.0]
[1748505294145,0.05,2731.9,2731.8,11.66059008]
[1748505295341,0.05,2731.9,2731.8,13.28961427]
[1748505298383,0.05,2731.9,2731.8,11.66059008]
[1748505301198,0.05,2731.9,2731.8,11.16059008]
[1748505311513,0.05,2731.9,2731.7,3.66070756]
[1748505311831,0.05,2731.9,2731.8,3.66059008]
[1748505314596,0.05,2731.9,2731.8,11.66059008]
[1748505317753,1.1215,2731.8,2730.9,1.2246]
[1748505318028,4.1475,2731.9,2731.0,3.6615763]
[1748505318029,1.1215,2731.5,2731.0,3.6615763]
[1748505318226,1.1215,2731.5,2730.9,1.2246]
[1748505318227,3.721,2731.4,2730.9,1.2246]
[1748505318426,3.721,2731.4,2731.1,3.66152407]
[1748505318633,3.721,2731.4,2731.3,3.6612602]
[1748505319331,1.1215,2731.7,2731.5,3.66097668]
[1748505319491,0.05,2731.9,2731.4,11.66108407]
[1748505319492,3.722,2731.6,2731.4,11.66108407]
[1748505319828,3.722,2731.6,2731.5,11.66088306]
[1748505320393,3.722,2731.6,2731.5,8.0]
[1748505321796,3.722,2731.6,2731.5,11.66099212]
[1748505322501,1.1443,2731.9,2731.5,9.82129758]
[1748505322714,3.722,2731.8,2731.6,3.66076402]
[1748505322914,1.1443,2731.9,2731.6,3.66076402]
[1748505323127,3.724,2731.8,2731.6,3.66076402]
[1748505323343,0.05,2731.9,2731.6,3.66076402]
[1748505323499,3.774,2731.9,2731.7,3.66062997]
[1748505324541,3.774,2731.9,2731.6,3.66082675]
[1748505324707,0.05,2731.9,2731.6,11.6608581]
[1748505324908,3.773,2731.9,2731.6,13.99304151]
[1748505325333,3.773,2731.9,2731.7,3.66068704]
[1748505325543,3.773,2731.9,2731.6,5.99296601]
[1748505325804,3.773,2731.9,2731.6,3.6607826]
[1748505326036,0.05,2731.9,2731.7,3.66071007]
[1748505326337,0.05,2731.9,2731.7,3.66065135]
[1748505326540,0.05,2731.9,2731.6,3.66076498]
[1748505326713,0.05,2731.9,2731.7,3.66070525]
[1748505326903,0.05,2731.9,2731.7,4.489071]
[1748505327303,0.05,2731.9,2731.7,0.82836575]
[1748505327515,0.05,2731.9,2731.7,4.48904957]
[1748505327925,0.05,2731.9,2731.8,3.66059008]
[1748505328140,0.05,2731.9,2731.7,4.48904354]
[1748505328550,0.05,2731.9,2731.8,3.66059008]
[1748505328918,0.05,2731.9,2731.7,4.48903066]
[1748505329705,0.05,2731.9,2731.7,4.4890026]
[1748505329905,0.05,2731.9,2731.7,12.4890026]
[1748505330640,0.05,2731.9,2731.7,0.82836575]
[1748505330950,0.05,2731.9,2731.7,3.66060065]
[1748505331511,0.05,2731.9,2731.8,3.66059008]
[1748505331708,0.05,2731.9,2731.7,3.66067428]
[1748505332255,0.05,2731.9,2731.7,11.66067428]
[1748505333314,0.05,2731.9,2731.8,3.66059008]
[1748505333749,0.05,2731.9,2731.7,11.66063196]
[1748505334618,0.05,2731.9,2731.7,8.0]
[1748505334816,0.05,2731.9,2731.8,4.76469008]
[1748505335457,0.05,2731.9,2731.8,3.66059008]
[1748505335821,0.05,2731.9,2731.8,4.73479008]
[1748505336222,0.05,2731.9,2731.8,3.66059008]
[1748505338325,0.05,2731.9,2731.8,5.57482597]
[1748505339797,0.05,2731.9,2731.8,3.66059008]
[1748505340373,0.05,2731.9,2731.7,13.44556013]
[1748505340578,0.05,2731.9,2731.7,8.0]
[1748505340891,0.05,2731.9,2731.7,11.66070383]
[1748505341047,0.05,2731.9,2731.8,3.66059008]
[1748505346702,0.05,2731.9,2731.7,3.36481301]
[1748505346870,0.05,2731.9,2731.8,3.66059008]
[1748505348863,0.05,2731.9,2731.7,1.7848507]
[1748505349274,0.905084,2731.9,2731.4,4.78532361]
[1748505349602,1.1121,2731.7,2731.3,3.66119128]
[1748505351505,1.1121,2731.7,2731.3,3.66125861]
[1748505360734,1.1121,2731.7,2731.3,11.66124122]
[1748505361236,3.72,2731.8,2731.5,8.0]
[1748505361401,3.72,2731.8,2731.6,5.44563857]
[1748505362692,0.05,2731.9,2731.7,3.66061458]
[1748505362938,3.77,2731.9,2731.7,3.66061458]
[1748505363432,3.77,2731.9,2731.6,5.44565065]
[1748505363817,3.77,2731.9,2731.6,1.7848507]
[1748505364008,3.77,2731.9,2731.2,1.7848507]
[1748505364326,1.0951,2731.8,2731.4,3.66111457]
[1748505364996,1.0951,2731.8,2731.4,8.0]
[1748505365197,1.0951,2731.8,2731.4,3.66111938]
[1748505365438,1.0951,2731.8,2731.5,3.66091546]
[1748505365741,1.0951,2731.8,2731.4,11.66106478]
[1748505366535,1.0951,2731.8,2731.4,3.66109692]
[1748505367109,1.133,2731.6,2731.2,5.44615291]
[1748505367631,1.133,2731.6,2731.2,1.7848507]
[1748505367836,1.133,2731.6,2731.1,8.0]
[1748505368041,1.133,2731.5,2731.1,8.0]
[1748505368241,4.853,2731.5,2731.0,3.66156163]
[1748505368543,4.853,2731.5,2731.1,3.66151]
[1748505369551,4.853,2731.5,2731.0,11.66161642]
[1748505370211,4.853,2731.5,2731.1,3.661512]
[1748505370813,4.853,2731.5,2731.2,1.7848507]
[1748505371545,4.853,2731.5,2731.2,5.44619964]
[1748505375522,4.853,2731.5,2731.2,1.7848507]
[1748505375943,8.51400043,2731.5,2731.2,1.7848507]
[1748505376148,3.66123904,2731.4,2731.2,1.7848507]
[1748505376382,4.73753135,2731.0,2730.5,3.01753504]
[1748505376553,4.73753135,2731.0,2730.6,3.66219522]
[1748505376554,4.7958,2731.0,2730.6,3.66219522]
[1748505377459,4.7958,2731.0,2730.7,3.66202022]
[1748505378067,3.72,2731.0,2730.8,3.66191029]
[1748505378248,3.72,2731.0,2730.9,1.7848507]
[1748505378653,3.72,2731.0,2730.9,5.44664717]
[1748505379830,3.72,2731.0,2730.9,1.7848507]
[1748505380823,3.72,2731.0,2730.8,3.66185208]
[1748505381067,3.72,2731.0,2730.7,3.6620082]
[1748505383894,3.72,2731.0,2730.5,15.5418469]
[1748505384062,3.72,2731.0,2730.7,3.66204089]
[1748505384454,1.1159,2731.2,2730.7,3.66204089]
[1748505384654,3.72,2731.1,2730.7,3.66204089]
[1748505390883,3.72,2731.1,2730.8,1.7848507]
[1748505391922,3.72,2731.1,2730.7,3.66204089]
[1748505393397,3.72,2731.1,2730.8,3.66191911]
[1748505393618,3.72,2731.1,2730.7,3.66205131]
[1748505395223,3.72,2731.1,2730.6,4.6221873]
[1748505395421,3.72,2731.1,2730.7,3.66206467]
[1748505396493,3.72,2731.1,2730.8,3.66190027]
[1748505396815,3.72,2731.1,2730.6,5.37635721]
[1748505397005,3.72,2731.1,2730.8,1.7848507]
[1748505397200,3.72,2731.1,2730.8,5.44677001]
[1748505398814,3.72,2731.1,2730.8,5.44676422]
[1748505399135,3.72,2731.1,2730.8,1.7848507]
[1748505402361,3.72,2731.1,2730.8,5.44671464]
[1748505405122,3.72,2731.1,2730.8,1.7848507]
[1748505405318,3.72,2731.1,2730.5,9.1347]
[1748505405319,3.66169119,2731.0,2730.5,1.1347]
[1748505405534,7.38159521,2731.1,2730.5,3.66225562]
[1748505405750,7.38159521,2731.1,2730.6,8.0]
[1748505405949,7.38159521,2731.1,2730.6,3.66218129]
[1748505406462,3.72,2731.1,2730.6,3.66218129]
[1748505406753,3.72,2731.1,2730.7,3.66206016]
[1748505407135,3.72,2731.1,2730.7,3.66195607]
[1748505407333,1.1159,2731.2,2730.8,3.66192231]
[1748505407539,3.719,2731.0,2730.8,3.66192231]
[1748505408072,3.719,2731.0,2730.7,3.66206467]
[1748505408272,3.719,2731.0,2730.8,3.66184272]
[1748505410665,3.719,2731.0,2730.5,1.47752556]
[1748505410884,1.1029,2730.5,2729.9,1.1546]
[1748505411087,1.1029,2730.5,2729.5,3.33568332]
[1748505411088,3.719,2730.4,2729.7,1.1546]
[1748505411384,3.66352543,2729.7,2729.4,1.1546]
[1748505411586,3.66224349,2730.6,2729.1,0.05]
[1748505411587,4.78352609,2729.9,2729.2,1.7848507]
[1748505411784,3.719,2729.8,2729.2,1.7848507]
[1748505411958,3.66352583,2729.7,2729.2,1.7848507]
[1748505412285,3.66342203,2729.7,2729.2,1.7848507]
[1748505412661,7.38232879,2729.8,2729.2,5.44883533]
[1748505413393,3.66349121,2729.7,2729.2,1.7848507]
[1748505413609,3.719,2729.8,2729.2,1.7848507]
[1748505413891,4.82100054,2731.7,2730.0,9.0937]
[1748505414050,0.05,2731.9,2730.5,1.0601]
[1748505414251,3.66134814,2731.3,2730.5,12.72234784]
[1748505414475,4.76574814,2731.3,2730.5,12.72234784]
[1748505414869,3.735,2731.2,2730.5,9.0601]
[1748505415075,3.66177056,2731.0,2730.5,8.0]
[1748505415266,4.14549177,2731.1,2730.5,8.0]
[1748505415588,4.14548886,2731.1,2730.5,8.0]
[1748505415773,4.14548886,2731.1,2730.4,1.7848507]
[1748505415774,3.66169096,2731.0,2730.4,1.7848507]
[1748505415979,3.66179647,2730.9,2730.4,9.7848507]
[1748505416176,0.78074274,2730.9,2730.4,1.7848507]
[1748505416856,4.44258591,2730.9,2730.4,1.7848507]
[1748505417053,0.78074274,2730.9,2730.4,1.7848507]
[1748505417595,0.48394,2731.1,2730.4,1.7848507]
[1748505417974,4.14550241,2731.1,2730.5,3.66232668]
[1748505418290,0.48394,2731.1,2730.4,5.44728129]
[1748505418492,4.14554521,2731.1,2730.4,5.44728129]
[1748505418693,4.14554521,2731.1,2730.5,3.66233226]
[1748505418895,1.15419486,2731.0,2730.5,3.66233226]
[1748505419757,0.48394,2731.1,2730.4,1.7848507]
[1748505419973,1.1044,2731.3,2730.4,1.7848507]
[1748505419974,3.733,2731.0,2730.4,1.7848507]
[1748505420661,7.39473362,2731.0,2730.4,5.44729901]
[1748505422507,8.50034962,2731.0,2730.4,5.44729901]
[1748505424410,3.66184218,2730.9,2730.4,1.7848507]
[1748505424579,3.66179647,2730.9,2730.4,1.7848507]
[1748505425182,1.152,2730.8,2730.4,1.7848507]
[1748505425502,4.8139645,2730.8,2730.4,1.7848507]
[1748505425698,4.8139645,2730.8,2730.1,4.72295512]
[1748505425699,3.66213373,2730.7,2730.1,1.0601]
[1748505425903,6.14541206,2730.8,2730.2,4.62270555]
[1748505426402,2.48342549,2730.8,2730.3,3.66257609]
[1748505426963,1.152,2730.8,2730.3,3.66257609]
[1748505427487,4.81394557,2730.8,2730.3,3.66257609]
[1748505427697,0.55,2731.6,2730.5,1.7848507]
[1748505427986,4.78765739,2731.3,2730.7,3.66199512]
[1748505428900,4.78765739,2731.3,2730.8,3.6619255]
[1748505429062,5.63250969,2731.3,2730.7,3.66200428]
[1748505429799,5.63250969,2731.3,2730.5,8.0]
[1748505429974,5.63250969,2731.3,2730.7,8.0]
[1748505430175,3.66147665,2731.2,2730.7,8.0]
[1748505430905,3.66166303,2731.0,2730.6,0.96]
[1748505431203,1.97116912,2731.3,2730.5,11.66230229]
[1748505431204,3.66152832,2731.1,2730.5,11.66230229]
[1748505431409,3.66152832,2731.1,2730.0,1.7848507]
[1748505431615,3.728,2731.2,2730.2,3.66271725]
[1748505431616,3.66204075,2730.8,2730.2,3.66271725]
[1748505431819,4.78814075,2730.8,2730.1,12.62284642]
[1748505431969,1.1261,2730.8,2730.3,3.66253088]
[1748505432168,1.1261,2730.8,2730.5,3.66229237]
[1748505432796,1.1261,2730.8,2730.4,3.66239942]
[1748505432997,1.1649,2731.1,2730.4,5.44731081]
[1748505433181,1.1649,2731.1,2730.4,5.4472496]
[1748505433182,3.728,2731.0,2730.4,5.4472496]
[1748505433385,3.728,2731.0,2730.5,3.66222518]
[1748505434187,3.728,2731.0,2730.6,3.66217238]
[1748505434383,3.728,2731.0,2730.5,3.66228287]
[1748505434686,3.728,2731.0,2730.5,4.72878287]
[1748505435592,3.66187292,2730.9,2730.5,1.0665]
[1748505435905,3.66172348,2731.0,2730.5,1.0665]
[1748505436903,3.66172348,2731.0,2730.5,1.7848507]
[1748505437717,4.8899,2731.1,2730.6,3.66212386]
[1748505437912,8.55144072,2731.1,2730.6,3.66212386]
[1748505438276,8.55144072,2731.1,2730.6,3.66217674]
[1748505438617,4.8899,2731.1,2730.6,3.66217674]
[1748505439510,8.55143267,2731.1,2730.6,3.66217674]
[1748505439810,8.55143267,2731.1,2730.5,13.44711838]
[1748505440023,4.8899,2731.1,2730.6,3.66210743]
[1748505440181,8.55145478,2731.1,2730.5,16.39453636]
[1748505440387,4.8899,2731.1,2730.6,3.66212101]
[1748505440613,8.55145131,2731.1,2730.5,16.39457999]
[1748505440921,8.55145131,2731.1,2730.6,3.66219101]
[1748505441126,8.55145131,2731.1,2730.5,16.39462244]
[1748505441626,8.55145131,2731.1,2730.3,3.66255477]
[1748505441627,3.66216872,2730.7,2730.3,0.964]
[1748505441824,3.66198557,2730.8,2730.3,0.964]
[1748505442189,3.66198557,2730.8,2730.3,4.62658624]
[1748505442528,4.8899,2731.1,2730.5,3.66224302]
[1748505442529,3.724,2730.9,2730.5,3.66224302]
[1748505442685,3.725,2731.0,2730.5,4.49111557]
[1748505443432,7.38667391,2731.0,2730.5,4.49111557]
[1748505443608,7.38673301,2731.0,2730.4,3.66245975]
[1748505445106,7.38673301,2731.0,2730.3,2.7488507]
[1748505445107,3.725,2731.0,2730.3,2.7488507]
[1748505445428,3.66203613,2730.8,2730.3,2.7488507]
[1748505445623,3.66203613,2730.8,2730.4,8.0]
[1748505446118,3.66209479,2730.7,2730.4,8.0]
[1748505446425,3.725,2731.0,2730.3,2.7488507]
[1748505446426,3.725,2731.0,2730.3,9.7848507]
[1748505446627,3.66226069,2730.6,2730.3,9.7848507]
[1748505446847,3.725,2731.0,2730.3,9.7848507]
[1748505447004,3.66220665,2730.6,2730.3,9.7848507]
[1748505447192,3.66231911,2730.6,2730.3,1.7848507]
[1748505449062,3.66213376,2730.7,2730.3,1.7848507]
[1748505449206,7.38397413,2730.8,2730.3,1.7848507]
[1748505449207,7.38399596,2730.8,2730.3,1.7848507]
[1748505449538,3.6620661,2730.7,2730.3,1.7848507]
[1748505451141,7.3839849,2730.8,2730.3,1.7848507]
[1748505451847,3.6620805,2730.7,2730.3,1.7848507]
[1748505453743,3.66199651,2730.8,2730.3,1.7848507]
[1748505454041,7.38199651,2730.8,2730.3,1.7848507]
[1748505454756,7.38199651,2730.8,2729.7,4.62734072]
[1748505454757,4.76271791,2730.3,2729.7,4.62734072]
[1748505455049,4.76271791,2730.3,2729.9,3.66313119]
[1748505455050,1.1,2730.3,2729.9,3.66313119]
[1748505456918,1.1,2730.3,2729.9,3.66305367]
[1748505457320,1.1,2730.3,2729.8,3.66322562]
[1748505457643,4.76269282,2730.3,2729.7,4.6273575]
[1748505457839,4.76269282,2730.3,2729.7,5.75331699]
[1748505458042,3.66284315,2730.2,2729.7,1.12595949]
[1748505458243,3.66284315,2730.2,2729.7,3.66339254]
[1748505458636,4.76268038,2730.3,2729.7,3.66333697]
[1748505458806,4.76268038,2730.3,2729.7,8.0]
[1748505458807,4.821,2730.3,2729.7,8.0]
[1748505459012,3.66282275,2730.2,2729.7,8.0]
[1748505459442,3.66282275,2730.2,2729.7,11.66333571]
[1748505459443,3.66274232,2730.2,2729.7,11.66333571]
[1748505459646,4.821,2730.3,2729.8,3.66325062]
[1748505460571,4.821,2730.3,2729.9,3.66312163]
[1748505461633,4.821,2730.3,2729.8,4.75220273]
[1748505461949,4.821,2730.3,2729.8,3.6632051]
[1748505462621,3.66277256,2730.2,2729.6,14.41228107]
[1748505463051,3.66277256,2730.2,2729.7,3.66339733]
[1748505463719,4.821,2730.3,2729.6,10.7488507]
[1748505464204,4.821,2730.3,2729.7,3.66339944]
[1748505464205,3.66279353,2730.2,2729.7,3.66339944]
[1748505464462,4.821,2730.3,2729.8,3.66314545]
[1748505464671,4.821,2730.3,2729.8,3.66320196]
[1748505464822,4.821,2730.3,2729.9,11.66306751]
[1748505465026,1.1,2730.3,2729.9,11.66306751]
[1748505465318,1.1,2730.3,2730.0,5.44783619]
[1748505465518,4.821,2730.3,2730.0,5.44783619]
[1748505467177,4.821,2730.3,2730.0,1.7848507]
[1748505468640,4.821,2730.3,2729.9,11.66309313]
[1748505469976,4.821,2730.3,2730.0,3.66298791]
[1748505470178,4.821,2730.3,2730.0,5.44783861]
[1748505474699,4.821,2730.3,2730.0,5.44778729]
[1748505475714,1.1063,2731.3,2730.2,5.3545521]
[1748505475868,0.05,2731.9,2730.2,5.3545521]
[1748505475869,1.1063,2731.8,2731.4,1.7848507]
[1748505476072,4.8403,2731.8,2731.4,1.7848507]
[1748505476278,3.66079621,2731.7,2731.4,1.7848507]
[1748505476473,3.66079621,2731.7,2731.0,3.66165284]
[1748505476474,1.062,2731.5,2731.0,3.66165284]
[1748505476672,1.062,2731.5,2730.9,2.7448507]
[1748505477276,4.795,2731.5,2731.2,3.66131577]
[1748505479221,4.795,2731.5,2731.1,3.66146236]
[1748505479426,4.795,2731.5,2731.1,3.66152832]
[1748505479918,1.062,2731.5,2731.1,3.66152832]
[1748505480215,4.793,2731.5,2730.9,6.40662365]
[1748505480379,4.793,2731.5,2731.0,3.66162105]
[1748505480724,1.062,2731.5,2731.0,3.66162105]
[1748505481013,4.793,2731.5,2731.0,3.66162105]
[1748505481414,4.793,2731.5,2731.1,3.66152769]
[1748505482324,4.792,2731.5,2731.1,3.66152769]
[1748505482889,4.792,2731.5,2731.0,3.66159669]
[1748505483086,4.792,2731.5,2731.1,3.66149889]
[1748505483700,4.791,2731.5,2731.2,3.66139174]
[1748505484015,4.791,2731.5,2731.1,3.66145531]
[1748505485586,4.791,2731.5,2731.2,3.66138344]
[1748505485786,4.791,2731.5,2731.1,3.66148401]
[1748505486588,1.062,2731.5,2731.2,3.66133744]
[1748505486794,1.062,2731.5,2731.3,3.66123733]
[1748505487037,1.062,2731.5,2731.1,4.74286749]
[1748505487038,1.062,2731.5,2731.2,3.66132984]
[1748505488000,1.062,2731.5,2731.2,3.66139148]
[1748505490715,1.062,2731.5,2731.1,1.08138953]
[1748505491252,1.062,2731.5,2731.1,9.08138953]
[1748505491416,1.062,2731.5,2731.2,3.66138933]
[1748505493253,1.062,2731.5,2731.3,8.0]
[1748505495430,0.05,2731.9,2731.3,4.16262859]
[1748505495753,3.722,2731.8,2731.3,4.16262859]
[1748505495955,7.38259935,2731.8,2731.3,5.44599981]
[1748505496157,3.722,2731.8,2731.3,5.44599981]
[1748505496364,3.722,2731.8,2731.4,3.66111649]
[1748505498119,3.721,2731.8,2731.4,3.66111649]
[1748505500361,3.721,2731.8,2731.3,1.7848507]
[1748505500527,3.721,2731.8,2731.4,3.66106032]
[1748505500863,3.71052101,2731.9,2731.4,3.66106032]
[1748505501039,3.719,2731.8,2731.3,5.44604162]
[1748505502703,7.37963757,2731.8,2731.3,5.44604162]
[1748505503965,3.719,2731.8,2731.3,5.44604162]
[1748505504169,3.719,2731.8,2731.4,8.0]
[1748505505263,7.37969784,2731.8,2731.4,8.0]
[1748505505669,3.719,2731.8,2731.4,8.0]
[1748505506370,3.719,2731.8,2731.4,11.66102998]
[1748505507676,3.719,2731.8,2731.4,3.66111425]
[1748505509075,3.719,2731.8,2731.3,9.7848507]
[1748505509076,0.05,2731.9,2731.3,13.44608045]
[1748505509274,3.719,2731.8,2731.4,3.66105786]
[1748505510338,3.66109934,2731.5,2731.3,1.7848507]
[1748505510539,1.082,2731.7,2731.3,1.7848507]
[1748505510540,3.66091978,2731.6,2731.3,1.7848507]
[1748505511275,4.74279037,2731.7,2731.3,9.7848507]
[1748505513971,1.082,2731.7,2731.3,13.44607228]
[1748505515170,1.082,2731.7,2731.3,3.66122158]
[1748505515353,2.01821798,2731.7,2731.3,3.66122158]